bitfinex-derivatives/quotes_BNBF0:USTF0_20250221
["timestamp","ask_amount","ask_price","bid_price","bid_amount"]
[1740145629798,3.23458482,667.22,665.92,0.30033637]
[1740145630000,3.53434051,667.21,665.92,0.30033637]
[1740145630297,5.91279773,667.2,665.92,0.30033637]
[1740145630503,3.23458482,667.19,665.92,0.30033637]
[1740145630802,3.23458482,667.18,665.92,0.30033637]
[1740145631003,3.23458482,667.17,665.92,0.30033637]
[1740145631198,3.23458482,667.16,665.92,0.30033637]
[1740145631401,3.23458482,667.15,665.92,0.30033637]
[1740145631604,3.23458482,667.14,665.92,0.30033637]
[1740145631804,3.23458482,667.13,665.92,0.30033637]
[1740145632001,3.23458482,667.12,665.92,0.30033637]
[1740145632208,3.23458482,667.11,665.92,0.30033637]
[1740145632406,3.23458482,667.1,665.92,0.30033637]
[1740145632607,3.23458482,667.09,665.92,0.30033637]
[1740145632907,3.23458482,667.08,665.92,0.30033637]
[1740145633207,3.23458482,667.07,665.92,0.30033637]
[1740145633406,3.23458482,667.06,665.92,0.30033637]
[1740145633709,3.23458482,667.05,665.92,0.30033637]
[1740145633907,3.23458482,667.04,665.92,0.30033637]
[1740145634106,3.23458482,667.03,665.92,0.30033637]
[1740145634304,3.23458482,667.02,665.92,0.30033637]
[1740145634507,3.23458482,667.01,665.92,0.30033637]
[1740145634807,3.23458482,667.0,665.92,0.30033637]
[1740145635008,3.23458482,666.99,665.92,0.30033637]
[1740145635205,3.23458482,666.98,665.92,0.30033637]
[1740145635407,3.23458482,666.97,665.92,0.30033637]
[1740145635705,3.23458482,666.96,665.92,0.30033637]
[1740145635906,3.23458482,666.95,665.92,0.30033637]
[1740145636108,3.23458482,666.94,665.92,0.30033637]
[1740145636306,3.23458482,666.93,665.92,0.30033637]
[1740145636507,3.23458482,666.92,665.92,0.30033637]
[1740145636700,3.23458482,666.91,665.92,0.30033637]
[1740145636905,3.23458482,666.9,665.92,0.30033637]
[1740145637102,3.23458482,666.89,665.92,0.30033637]
[1740145637306,3.23458482,666.88,665.92,0.30033637]
[1740145637501,3.23458482,666.87,665.92,0.30033637]
[1740145637702,3.23458482,666.86,665.92,0.30033637]
[1740145639813,3.23601286,666.77,665.92,0.30033637]
[1740145640010,2.37845272,666.78,665.92,0.30033637]
[1740145640210,3.23614964,666.77,665.92,0.30033637]
[1740145640506,3.23614964,666.76,665.92,0.30033637]
[1740145640711,3.23614964,666.75,665.92,0.30033637]
[1740145640913,3.23614964,666.74,665.92,0.30033637]
[1740145641114,2.37845272,666.78,665.92,0.30033637]
[1740145641320,2.37845272,666.73,665.92,0.30033637]
[1740145642819,2.37845272,666.72,665.92,0.30033637]
[1740145643816,2.37845272,666.71,665.92,0.30033637]
[1740145645520,2.37845272,666.7,665.92,0.30033637]
[1740145647222,2.37845272,666.69,665.92,0.30033637]
[1740145649023,3.23592977,667.06,665.92,0.30033637]
[1740145649224,3.23592977,667.05,665.92,0.30033637]
[1740145649422,3.23592977,667.04,665.92,0.30033637]
[1740145649623,5.61407766,667.03,665.92,0.30033637]
[1740145649824,3.23592977,667.02,665.92,0.30033637]
[1740145650019,2.37814789,667.03,665.92,0.30033637]
[1740145650219,3.2360721,667.02,665.92,0.30033637]
[1740145650423,2.37814789,667.03,665.92,0.30033637]
[1740145650723,3.23598163,667.02,665.92,0.30033637]
[1740145650924,2.37814789,667.03,665.92,0.30033637]
[1740145651125,3.23598693,667.02,665.92,0.30033637]
[1740145651318,2.37814789,667.02,665.92,0.30033637]
[1740145651523,3.23598504,667.01,665.92,0.30033637]
[1740145651723,3.23601825,667.0,665.92,0.30033637]
[1740145651928,2.37814789,667.02,665.92,0.30033637]
[1740145652130,3.23606223,667.01,665.92,0.30033637]
[1740145652327,3.23606223,667.0,665.92,0.30033637]
[1740145652532,3.23606223,666.99,665.92,0.30033637]
[1740145652735,3.23606223,666.98,665.92,0.30033637]
[1740145653028,2.37814789,666.99,665.92,0.30033637]
[1740145653929,2.37814789,666.98,665.92,0.30033637]
[1740145654631,3.23696067,666.97,665.92,0.30033637]
[1740145654829,3.23696067,666.96,665.92,0.30033637]
[1740145655036,3.23696067,666.95,665.92,0.30033637]
[1740145655231,5.61510856,666.94,665.92,0.30033637]
[1740145655533,3.23696067,666.93,665.92,0.30033637]
[1740145655735,3.23696067,666.92,665.92,0.30033637]
[1740145655937,3.23696067,666.91,665.92,0.30033637]
[1740145656133,3.23696067,666.9,665.92,0.30033637]
[1740145656334,3.23696067,666.89,665.92,0.30033637]
[1740145656534,5.61510856,666.88,665.92,0.30033637]
[1740145656726,3.23696067,666.87,665.92,0.30033637]
[1740145656927,3.23696067,666.86,665.92,0.30033637]
[1740145657131,3.23696067,666.85,665.92,0.30033637]
[1740145657328,3.23696067,666.84,665.92,0.30033637]
[1740145657536,3.23696067,666.83,665.92,0.30033637]
[1740145657731,5.61509252,666.82,665.92,0.30033637]
[1740145657936,3.23694463,666.81,665.92,0.30033637]
[1740145658138,3.23694463,666.8,665.92,0.30033637]
[1740145658339,2.37814789,666.82,665.92,0.30033637]
[1740145658937,3.23677013,666.81,665.92,0.30033637]
[1740145659137,2.37814789,666.82,665.92,0.30033637]
[1740145659539,2.37814789,666.81,665.92,0.30033637]
[1740145659946,3.94495676,666.81,665.92,0.30033637]
[1740145660836,2.37814789,666.8,665.92,0.30033637]
[1740145661437,3.23626182,666.79,665.92,0.30033637]
[1740145661635,3.23626182,666.78,665.92,0.30033637]
[1740145661837,3.23626182,666.77,665.92,0.30033637]
[1740145662042,3.23626182,666.76,665.92,0.30033637]
[1740145662237,3.23626182,666.75,665.92,0.30033637]
[1740145662538,3.23626182,666.74,665.92,0.30033637]
[1740145662743,3.23626182,666.73,665.92,0.30033637]
[1740145662943,3.23626182,666.72,665.92,0.30033637]
[1740145663242,2.37814789,666.76,665.92,0.30033637]
[1740145663243,3.23626182,666.71,665.92,0.30033637]
[1740145663542,2.37814789,666.7,665.92,0.30033637]
[1740145665143,2.37814789,666.69,665.92,0.30033637]
[1740145667042,2.37814789,666.68,665.92,0.30033637]
[1740145667545,2.37814789,666.68,665.45,1.10983907]
[1740145667747,2.37814789,666.68,665.46,0.30054398]
[1740145668046,3.23494915,666.67,665.46,0.30054398]
[1740145668245,3.23494915,666.66,665.46,0.30054398]
[1740145668442,3.23494915,666.65,665.46,0.30054398]
[1740145668647,3.23494915,666.64,665.46,0.30054398]
[1740145668850,3.23494915,666.63,665.46,0.30054398]
[1740145669047,3.23494915,666.62,665.46,0.30054398]
[1740145669248,3.23494915,666.61,665.46,0.30054398]
[1740145669448,2.37814789,666.67,665.46,0.30054398]
[1740145669648,2.37814789,666.6,665.46,0.30054398]
[1740145670946,2.37814789,666.59,665.46,0.30054398]
[1740145672551,2.37814789,666.58,665.46,0.30054398]
[1740145673049,3.94544483,666.58,665.46,0.30054398]
[1740145673850,3.23011333,666.57,665.46,0.30054398]
[1740145674051,3.23015592,666.56,665.46,0.30054398]
[1740145674250,3.22901684,666.55,665.46,0.30054398]
[1740145674447,2.37814789,666.56,665.46,0.30054398]
[1740145676155,2.37814789,666.55,665.46,0.30054398]
[1740145677148,2.37814789,666.54,665.46,0.30054398]
[1740145677354,3.22521317,666.53,665.46,0.30054398]
[1740145677557,3.22521317,666.52,665.46,0.30054398]
[1740145677755,2.37814789,666.54,665.46,0.30054398]
[1740145677756,3.22521317,666.51,665.46,0.30054398]
[1740145677950,3.22521317,666.5,665.46,0.30054398]
[1740145678152,2.37814789,666.54,665.46,0.30054398]
[1740145679151,2.37814789,666.53,665.46,0.30054398]
[1740145679552,3.22326063,666.52,665.46,0.30054398]
[1740145679757,3.22326063,666.51,665.46,0.30054398]
[1740145679955,3.22326063,666.5,665.46,0.30054398]
[1740145680158,3.22326063,666.49,665.46,0.30054398]
[1740145680458,5.60140852,666.48,665.46,0.30054398]
[1740145680656,2.37814789,666.48,665.46,0.30054398]
[1740145681856,1.56729694,666.58,665.46,0.30054398]
[1740145685062,0.3000435,666.57,665.46,0.30054398]
[1740145688269,2.37814789,666.56,665.46,0.30054398]
[1740145689867,2.37814789,666.55,665.46,0.30054398]
[1740145691269,2.37814789,666.54,665.46,0.30054398]
[1740145693472,3.22209503,666.53,665.46,0.30054398]
[1740145693665,3.22209503,666.52,665.46,0.30054398]
[1740145693867,0.3000435,666.57,665.46,0.30054398]
[1740145694472,1.56785006,666.56,665.46,0.30054398]
[1740145697577,3.21434223,666.55,665.46,0.30054398]
[1740145697780,3.21434223,666.54,665.46,0.30054398]
[1740145697980,3.21434223,666.53,665.46,0.30054398]
[1740145698272,3.21434223,666.52,665.46,0.30054398]
[1740145698478,3.21434223,666.51,665.46,0.30054398]
[1740145698678,3.21434223,666.5,665.46,0.30054398]
[1740145698979,3.21434223,666.49,665.46,0.30054398]
[1740145699174,3.21434223,666.48,665.46,0.30054398]
[1740145699374,3.21434223,666.47,665.46,0.30054398]
[1740145699571,2.37814789,666.54,665.46,0.30054398]
[1740145699773,3.21476802,666.53,665.46,0.30054398]
[1740145699976,3.21476802,666.52,665.46,0.30054398]
[1740145700175,2.37814789,666.53,665.46,0.30054398]
[1740145700779,3.21501338,666.52,665.46,0.30054398]
[1740145700980,2.37814789,666.52,665.46,0.30054398]
[1740145701179,3.2152499,666.51,665.46,0.30054398]
[1740145701479,2.37814789,666.52,665.46,0.30054398]
[1740145701773,3.21524934,666.51,665.46,0.30054398]
[1740145702073,3.21524711,666.5,665.46,0.30054398]
[1740145702273,3.21524711,666.49,665.46,0.30054398]
[1740145702480,2.37814789,666.49,665.46,0.30054398]
[1740145703673,1.56785006,666.56,665.46,0.30054398]
[1740145704077,2.36399197,666.55,665.46,0.30054398]
[1740145705780,1.56785006,666.56,665.46,0.30054398]
[1740145705781,2.36399197,666.54,665.46,0.30054398]
[1740145707783,1.56785006,666.56,665.46,0.30054398]
[1740145708984,2.36662228,666.55,665.46,0.30054398]
[1740145710481,1.56785006,666.56,665.46,0.30054398]
[1740145713285,2.3701718,666.55,665.46,0.30054398]
[1740145714884,1.56785006,666.56,665.46,0.30054398]
[1740145723793,2.37532412,666.55,665.46,0.30054398]
[1740145724588,3.23272991,666.54,665.46,0.30054398]
[1740145724796,3.23272991,666.53,665.46,0.30054398]
[1740145724996,3.23272991,666.52,665.46,0.30054398]
[1740145725190,3.23381452,666.51,665.46,0.30054398]
[1740145725393,2.37532412,666.52,665.46,0.30054398]
[1740145725990,3.233986,666.51,665.46,0.30054398]
[1740145726195,3.233986,666.5,665.46,0.30054398]
[1740145726494,3.233986,666.49,665.46,0.30054398]
[1740145726694,3.233986,666.48,665.46,0.30054398]
[1740145726896,3.233986,666.47,665.46,0.30054398]
[1740145727095,3.233986,666.46,665.46,0.30054398]
[1740145727394,3.23569982,666.45,665.24,1.10983907]
[1740145727595,3.23569982,666.44,665.24,1.10983907]
[1740145727795,3.23569982,666.43,665.24,1.10983907]
[1740145727997,2.37532412,666.48,665.17,1.10983907]
[1740145727998,3.23587164,666.42,665.17,1.10983907]
[1740145728296,3.23587164,666.41,665.17,1.10983907]
[1740145728594,3.23587164,666.4,665.17,1.10983907]
[1740145728790,3.23587164,666.39,665.17,1.10983907]
[1740145728996,3.23587164,666.38,665.17,1.10983907]
[1740145729192,3.23587164,666.37,665.17,1.10983907]
[1740145729394,3.23587164,666.36,665.17,1.10983907]
[1740145729697,3.23587164,666.35,665.17,1.10983907]
[1740145729897,3.23587164,666.34,665.17,1.10983907]
[1740145730197,3.23587164,666.33,665.17,1.10983907]
[1740145730393,3.23587164,666.32,665.17,1.10983907]
[1740145730591,3.23587164,666.31,665.17,1.10983907]
[1740145730794,3.23587164,666.3,665.17,1.10983907]
[1740145730996,3.23587164,666.29,664.95,1.10983907]
[1740145731292,3.23587164,666.28,664.96,0.30076997]
[1740145731496,3.23587164,666.27,664.96,0.30076997]
[1740145731692,3.23587164,666.26,664.96,0.30076997]
[1740145732094,2.37532412,666.32,664.96,0.30076997]
[1740145732295,1.56770292,666.49,664.96,0.30076997]
[1740145732799,5.61079899,666.48,664.96,0.30076997]
[1740145732996,3.23366789,666.47,664.96,0.30076997]
[1740145733197,3.23366789,666.46,664.96,0.30076997]
[1740145733394,3.23366789,666.45,664.99,1.10983907]
[1740145733593,3.23366789,666.44,665.01,0.30074735]
[1740145733795,3.23366789,666.43,665.01,0.30074735]
[1740145733995,3.23366789,666.42,665.01,0.30074735]
[1740145734200,3.23366789,666.41,665.01,0.30074735]
[1740145734398,3.23366789,666.4,665.01,0.30074735]
[1740145734599,2.3771311,666.42,665.01,0.30074735]
[1740145735596,2.3771311,666.41,665.01,0.30074735]
[1740145737095,3.94506946,666.4,665.01,0.30074735]
[1740145738298,3.23266503,666.39,665.01,0.30074735]
[1740145738496,3.23266503,666.38,665.01,0.30074735]
[1740145738702,3.23266503,666.37,665.01,0.30074735]
[1740145739000,3.23266503,666.36,665.01,0.30074735]
[1740145739201,3.23266503,666.35,665.01,0.30074735]
[1740145739394,3.23266503,666.34,665.01,0.30074735]
[1740145739594,3.23244162,666.33,665.01,0.30074735]
[1740145739794,2.3771311,666.32,665.01,0.30074735]
[1740145740601,2.3771311,666.32,665.06,1.10983907]
[1740145740802,2.3771311,666.32,665.08,0.3007157]
[1740145741701,2.3771311,666.31,665.08,0.3007157]
[1740145743004,2.3771311,666.3,665.08,0.3007157]
[1740145744311,2.3771311,666.29,665.08,0.3007157]
[1740145746012,1.56793836,666.4,665.08,0.3007157]
[1740145750615,2.3771311,666.39,665.08,0.3007157]
[1740145752314,2.3771311,666.38,665.08,0.3007157]
[1740145754109,1.56793836,666.4,665.08,0.3007157]
[1740145754708,2.376,666.39,665.08,0.3007157]
[1740145756111,1.056,666.38,665.08,0.3007157]
[1740145756718,2.376,666.37,665.08,0.3007157]
[1740145758222,1.056,666.38,665.08,0.3007157]
[1740145762914,2.37582518,666.37,665.08,0.3007157]
[1740145764521,2.37582518,666.36,665.08,0.3007157]
[1740145766323,2.37582518,666.36,665.14,1.10983907]
[1740145766522,2.37582518,666.35,665.14,1.10983907]
[1740145767820,5.60735375,666.34,665.14,1.10983907]
[1740145768023,3.23152857,666.33,665.14,1.10983907]
[1740145768221,2.37582518,666.34,665.14,1.10983907]
[1740145768422,3.23148003,666.33,665.14,1.10983907]
[1740145768623,1.5679678,666.32,665.14,1.10983907]
[1740145769421,2.37582518,666.31,665.16,1.10983907]
[1740145769827,2.37582518,666.31,665.17,0.30067501]
[1740145770619,1.5679678,666.32,665.17,0.30067501]
[1740145786439,1.5679678,666.32,665.19,1.10983907]
[1740145786640,1.5679678,666.32,665.2,0.30066145]
[1740145798146,2.38069317,666.31,665.2,0.30066145]
[1740145799848,2.38069317,666.3,665.2,0.30066145]
[1740145801549,2.38069317,666.29,665.2,0.30066145]
[1740145803254,1.5679678,666.32,665.2,0.30066145]
[1740145806153,2.3807723,666.31,665.2,0.30066145]
[1740145806351,3.23875592,666.3,665.2,0.30066145]
[1740145806655,2.3807723,666.31,665.2,0.30066145]
[1740145808051,1.5679678,666.32,665.2,0.30066145]
[1740145808449,2.38081576,666.31,665.2,0.30066145]
[1740145809849,2.38081576,666.3,665.2,0.30066145]
[1740145810657,2.38081576,666.3,665.24,1.10983907]
[1740145811358,2.38081576,666.29,665.24,1.10983907]
[1740145812560,2.38081576,666.29,665.22,1.10983907]
[1740145812960,2.38081576,666.28,665.22,1.10983907]
[1740145813461,1.5679678,666.32,665.22,1.10983907]
[1740145814258,2.38093143,666.31,665.22,1.10983907]
[1740145814959,2.38093143,666.31,665.2,0.30066145]
[1740145816658,2.38093143,666.3,665.2,0.30066145]
[1740145818065,1.5679678,666.32,665.2,0.30066145]
[1740145819960,3.23860478,666.31,665.2,0.30066145]
[1740145820166,2.38071612,666.31,665.2,0.30066145]
[1740145821562,2.38071612,666.3,665.2,0.30066145]
[1740145823664,1.5679678,666.32,665.2,0.30066145]
[1740145827566,2.38071612,666.31,665.2,0.30066145]
[1740145828870,2.38071612,666.3,665.2,0.30066145]
[1740145829270,3.23870288,666.29,665.2,0.30066145]
[1740145829469,3.23870288,666.28,665.2,0.30066145]
[1740145829673,2.38071612,666.3,665.2,0.30066145]
[1740145829674,3.23870288,666.27,665.2,0.30066145]
[1740145829877,3.23870288,666.26,665.2,0.30066145]
[1740145830077,2.38071612,666.3,665.23,1.10983907]
[1740145830378,3.2387893,666.29,665.24,0.30064337]
[1740145830575,2.38071612,666.29,665.24,0.30064337]
[1740145832377,2.38071612,666.28,665.24,0.30064337]
[1740145832575,2.38071612,666.28,665.41,1.10983907]
[1740145833385,2.38071612,666.27,665.41,1.10983907]
[1740145834680,2.38071612,666.26,665.41,1.10983907]
[1740145834881,2.38071612,666.26,665.32,1.10983907]
[1740145835081,2.38071612,666.26,665.33,0.3006027]
[1740145835884,0.3000435,666.57,665.33,0.3006027]
[1740145836085,5.61872247,666.56,665.33,0.3006027]
[1740145836282,3.23839107,666.55,665.33,0.3006027]
[1740145836479,3.23839107,666.54,665.33,0.3006027]
[1740145836784,3.23839107,666.53,665.33,0.3006027]
[1740145836985,2.3803314,666.56,665.33,0.3006027]
[1740145837283,3.23810027,666.55,665.33,0.3006027]
[1740145837490,3.23810027,666.54,665.33,0.3006027]
[1740145837683,3.23810027,666.53,665.33,0.3006027]
[1740145837884,3.23810027,666.52,665.33,0.3006027]
[1740145838086,2.3803314,666.55,665.36,1.10983907]
[1740145838388,3.23790685,666.54,665.36,1.10983907]
[1740145838577,2.3803314,666.55,665.36,1.10983907]
[1740145838987,2.3803314,666.55,665.36,1.41042822]
[1740145839487,7.18542303,666.54,665.36,1.41042822]
[1740145839684,3.94778129,666.54,665.36,1.41042822]
[1740145839885,3.23768882,666.53,665.36,1.41042822]
[1740145840085,3.23768882,666.52,665.36,1.41042822]
[1740145840285,3.23768882,666.51,665.36,1.41042822]
[1740145840487,3.94778129,666.54,665.36,0.30058915]
[1740145840686,2.3803314,666.53,665.36,0.30058915]
[1740145841283,3.23779204,666.52,665.36,0.30058915]
[1740145841584,3.23779204,666.51,665.36,0.30058915]
[1740145841789,2.3803314,666.51,665.36,0.30058915]
[1740145843090,2.3803314,666.5,665.36,0.30058915]
[1740145844586,1.56744989,666.54,665.36,0.30058915]
[1740145855801,2.37568464,666.53,665.36,0.30058915]
[1740145857398,2.37568464,666.52,665.36,0.30058915]
[1740145858697,2.37568464,666.51,665.36,0.30058915]
[1740145861001,1.56744989,666.54,665.36,0.30058915]
[1740145861496,2.3748628,666.53,665.36,0.30058915]
[1740145863302,2.3748628,666.52,665.36,0.30058915]
[1740145865301,2.3748628,666.51,665.36,0.30058915]
[1740145866405,3.23109385,666.5,665.36,0.30058915]
[1740145866703,3.23109385,666.49,665.36,0.30058915]
[1740145866903,3.23109385,666.48,665.36,0.30058915]
[1740145867101,3.23109385,666.47,665.36,0.30058915]
[1740145867298,3.23109385,666.46,665.36,0.30058915]
[1740145867496,3.23109385,666.45,665.36,0.30058915]
[1740145867703,2.3748628,666.49,665.36,0.30058915]
[1740145867904,3.2314248,666.48,665.43,1.11806693]
[1740145868105,3.2314248,666.47,665.43,1.11806693]
[1740145868403,2.3748628,666.46,665.43,1.11806693]
[1740145868599,3.23143401,666.45,665.43,1.11806693]
[1740145868800,3.23143401,666.44,665.43,1.11806693]
[1740145869001,3.23143401,666.43,665.43,1.11806693]
[1740145869200,2.3748628,666.46,665.43,1.11806693]
[1740145869398,3.23138664,666.45,665.43,1.11806693]
[1740145869599,2.3748628,666.46,665.43,1.11806693]
[1740145869802,2.3748628,666.44,665.43,1.11806693]
[1740145870297,2.3748628,666.44,665.41,1.11806693]
[1740145870803,3.23197772,666.43,665.41,1.11806693]
[1740145871001,3.23197772,666.42,665.41,1.11806693]
[1740145871203,3.23197772,666.41,665.41,1.11806693]
[1740145871404,3.23197772,666.4,665.41,1.11806693]
[1740145871604,3.23197772,666.39,665.41,1.11806693]
[1740145871801,3.23197772,666.38,665.41,1.11806693]
[1740145871999,3.23197772,666.37,665.41,1.11806693]
[1740145872198,3.23197772,666.36,665.41,1.11806693]
[1740145872398,3.23197772,666.35,665.41,1.11806693]
[1740145872605,3.9425716,666.41,665.41,1.11806693]
[1740145872798,3.23211422,666.4,665.41,1.11806693]
[1740145872999,3.23211422,666.39,665.41,1.11806693]
[1740145873200,2.3748628,666.38,665.36,0.30058915]
[1740145874502,2.3748628,666.37,665.36,0.30058915]
[1740145876809,1.5677088,666.41,665.36,0.30058915]
[1740145885913,2.37475763,666.4,665.36,0.30058915]
[1740145887518,2.37475763,666.39,665.36,0.30058915]
[1740145889317,1.5677088,666.41,665.36,0.30058915]
[1740145895617,0.937,666.54,665.36,0.30058915]
[1740145916538,1.56747343,666.53,665.36,0.30058915]
[1740145933656,2.37072877,666.52,665.41,1.11806693]
[1740145934965,2.37072877,666.51,665.41,1.11806693]
[1740145936164,2.37072877,666.51,665.51,1.11806693]
[1740145936762,2.37072877,666.5,665.51,1.11806693]
[1740145937661,1.56747343,666.53,665.51,1.11806693]
[1740145938366,1.56747343,666.53,665.36,0.30058915]
[1740145938367,1.56747343,666.53,665.47,1.11806693]
[1740145940462,2.37546337,666.52,665.47,1.11806693]
[1740145941364,2.37546337,666.52,665.54,1.11806693]
[1740145942366,2.37546337,666.51,665.54,1.11806693]
[1740145943566,2.37546337,666.5,665.54,1.11806693]
[1740145943966,2.37546337,666.5,665.6,1.11806693]
[1740145944866,2.37546337,666.49,665.6,1.11806693]
[1740145946067,2.37546337,666.48,665.6,1.11806693]
[1740145946670,2.37546337,666.48,665.52,1.11806693]
[1740145947369,2.37546337,666.47,665.52,1.11806693]
[1740145948065,1.56742047,666.46,665.52,1.11806693]
[1740145948865,2.37546337,666.45,665.52,1.11806693]
[1740145949271,2.37546337,666.45,665.36,0.30058915]
[1740145950477,2.37546337,666.44,665.36,0.30058915]
[1740145952575,2.37546337,666.43,665.36,0.30058915]
[1740145953670,2.37546337,666.42,665.36,0.30058915]
[1740145954471,3.2374693,666.41,665.36,0.30058915]
[1740145954674,3.23746106,666.4,665.36,0.30058915]
[1740145954876,2.37546337,666.42,665.36,0.30058915]
[1740145955078,3.23748139,666.41,665.36,0.30058915]
[1740145955272,3.23748139,666.4,665.36,0.30058915]
[1740145955476,3.23748139,666.39,665.36,0.30058915]
[1740145955672,2.37546337,666.42,665.36,0.30058915]
[1740145955979,2.37546337,666.38,665.36,0.30058915]
[1740145956874,2.37546337,666.37,665.36,0.30058915]
[1740145958376,1.56762641,666.36,665.36,0.30058915]
[1740145959181,2.37546337,666.35,665.36,0.30058915]
[1740145960985,2.37546337,666.34,665.36,0.30058915]
[1740145962781,2.37546337,666.33,665.36,0.30058915]
[1740145965187,2.37546337,666.32,665.36,0.30058915]
[1740145966790,2.37546337,666.31,665.36,0.30058915]
[1740145967290,3.2344649,666.3,665.36,0.30058915]
[1740145967491,3.2344649,666.29,665.36,0.30058915]
[1740145967689,3.2344649,666.28,665.36,0.30058915]
[1740145967991,3.2344649,666.27,665.36,0.30058915]
[1740145968191,3.23454552,666.26,665.36,0.30058915]
[1740145968492,3.23449267,666.25,665.36,0.30058915]
[1740145968792,2.37546337,666.26,665.36,0.30058915]
[1740145969886,2.37546337,666.25,665.36,0.30058915]
[1740145971489,3.23425182,667.01,665.36,0.30058915]
[1740145971690,0.29985457,666.99,665.36,0.30058915]
[1740145971889,3.23425182,666.98,665.36,0.30058915]
[1740145972085,1.42036747,666.96,665.36,0.30058915]
[1740145972289,0.29987705,666.94,665.36,0.30058915]
[1740145972490,3.23425182,666.93,665.36,0.30058915]
[1740145972691,0.29989053,666.91,665.36,0.30058915]
[1740145972893,3.23425182,666.9,665.36,0.30058915]
[1740145973092,0.29990403,666.88,665.36,0.30058915]
[1740145973288,3.23425182,666.87,665.36,0.30058915]
[1740145973485,0.29991752,666.85,665.36,0.30058915]
[1740145973685,3.23425182,666.84,665.36,0.30058915]
[1740145973891,0.29993101,666.82,665.36,0.30058915]
[1740145974089,3.23425182,666.81,665.36,0.30058915]
[1740145974284,0.29994451,666.79,665.36,0.30058915]
[1740145974492,3.23425182,666.78,665.36,0.30058915]
[1740145974691,3.53420532,666.77,665.36,0.30058915]
[1740145974892,3.53420982,666.76,665.36,0.30058915]
[1740145975093,3.53421432,666.75,665.36,0.30058915]
[1740145975293,3.53421882,666.74,665.36,0.30058915]
[1740145975494,3.53422332,666.73,665.36,0.30058915]
[1740145975687,3.53422782,666.72,665.36,0.30058915]
[1740145975887,3.53423232,666.71,665.36,0.30058915]
[1740145976087,3.53423682,666.7,665.36,0.30058915]
[1740145976291,3.53424132,666.69,665.36,0.30058915]
[1740145976493,3.53424582,666.68,665.36,0.30058915]
[1740145976694,3.53425032,666.67,665.36,0.30058915]
[1740145976892,0.300003,666.66,665.36,0.30058915]
[1740145977293,2.37733944,666.65,665.36,0.30058915]
[1740145977789,3.23425182,666.64,665.36,0.30058915]
[1740145977994,3.23425182,666.63,665.36,0.30058915]
[1740145978295,3.23425182,666.62,665.36,0.30058915]
[1740145978596,3.53427732,666.61,665.36,0.30058915]
[1740145978795,3.53428182,666.6,665.36,0.30058915]
[1740145978996,3.23425182,666.59,665.36,0.30058915]
[1740145979191,3.53429082,666.58,665.36,0.30058915]
[1740145979389,3.23425182,666.57,665.36,0.30058915]
[1740145979593,3.53429982,666.56,665.36,0.30058915]
[1740145979793,3.53430432,666.55,665.36,0.30058915]
[1740145979989,3.53430883,666.54,665.36,0.30058915]
[1740145980197,3.23425182,666.53,665.36,0.30058915]
[1740145980397,3.23425182,666.52,665.36,0.30058915]
[1740145980690,3.23425182,666.51,665.36,0.30058915]
[1740145980895,3.23425182,666.5,665.36,0.30058915]
[1740145981095,3.23425182,666.49,665.36,0.30058915]
[1740145981391,3.23425182,666.48,665.36,0.30058915]
[1740145981592,2.67739645,666.54,665.36,0.30058915]
[1740145981593,3.23425182,666.47,665.36,0.30058915]
[1740145981788,3.23425182,666.46,665.36,0.30058915]
[1740145981997,0.30009753,666.45,665.04,1.11806693]
[1740145982390,0.30009753,666.45,665.04,1.41880072]
[1740145982895,3.23296035,666.44,665.04,1.41880072]
[1740145983095,0.30009753,666.45,665.04,1.41880072]
[1740145983699,2.37733944,666.44,665.04,1.41880072]
[1740145984197,0.30010653,666.43,665.04,1.41880072]
[1740145984494,0.30010653,666.43,665.04,0.30073379]
[1740145985195,1.56829756,666.42,665.04,0.30073379]
[1740145985394,0.30011554,666.41,665.04,0.30073379]
[1740145997411,2.37733944,666.4,665.04,0.30073379]
[1740145997909,3.22485565,666.39,665.04,0.30073379]
[1740145998104,3.22485565,666.38,665.04,0.30073379]
[1740145998310,3.2254236,666.37,665.04,0.30073379]
[1740145998509,2.37733944,666.4,665.04,0.30073379]
[1740145998703,3.22540035,666.39,665.04,0.30073379]
[1740145998907,3.22540035,666.38,665.04,0.30073379]
[1740145999211,3.22539303,666.37,665.04,0.30073379]
[1740145999410,3.22539303,666.36,665.04,0.30073379]
[1740145999603,3.22598426,666.35,665.04,0.30073379]
[1740145999808,3.22598426,666.34,665.04,0.30073379]
[1740146000006,3.22598426,666.33,665.04,0.30073379]
[1740146000203,5.6033237,666.32,665.04,0.30073379]
[1740146000407,3.22598426,666.31,665.04,0.30073379]
[1740146000608,3.22598426,666.3,665.04,0.30073379]
[1740146000807,3.22598426,666.29,665.04,0.30073379]
[1740146001005,3.22598426,666.28,665.04,0.30073379]
[1740146001205,3.22598426,666.27,665.04,0.30073379]
[1740146001408,3.22598426,666.26,665.04,0.30073379]
[1740146001606,3.22598426,666.25,665.04,0.30073379]
[1740146001809,3.22598426,666.24,665.04,0.30073379]
[1740146002012,2.37733944,666.25,665.04,0.30073379]
[1740146003710,2.37733944,666.24,665.04,0.30073379]
[1740146005320,2.37733944,666.23,665.04,0.30073379]
[1740146006619,1.289,666.22,665.04,0.30073379]
[1740146006918,2.37733944,666.21,665.04,0.30073379]